[Event "Titled Tuesday Blitz January 31 Early 2023"]
[White "Mikaelyan, Arman"]
[Black "Zhu, Jiner"]
[WhiteFideId "13304852"]
[BlackFideId "8608059"]
[WhiteElo "2523"]
[BlackElo "2507"]
[Result "0-1"]
[Round "11"]
[TimeControl "180+2"]
[Date "2023.01.31"]
[WhiteClock "0:00:02"]
[BlackClock "0:00:06"]

1. Nf3 {[%clk 0:02:59]}  Nf6 {[%clk 0:02:59]} 2. g3 {[%clk 0:02:56]}  g6 {[%clk 0:02:59]} 3. Bg2 {[%clk 0:02:56]}  Bg7 {[%clk 0:02:59]} 4. b3 {[%clk 0:02:55]}  O-O {[%clk 0:02:52]} 5. Bb2 {[%clk 0:02:54]}  d5 {[%clk 0:02:51]} 6. d4 {[%clk 0:02:51]}  Nbd7 {[%clk 0:02:39]} 7. O-O {[%clk 0:02:49]}  c5 {[%clk 0:02:39]} 8. dxc5 {[%clk 0:02:40]}  Nxc5 {[%clk 0:02:39]} 9. Nbd2 {[%clk 0:02:39]}  Bf5 {[%clk 0:02:31]} 10. c4 {[%clk 0:02:36]}  dxc4 {[%clk 0:02:26]} 11. Nxc4 {[%clk 0:02:36]}  Be4 {[%clk 0:02:20]} 12. Qd4 {[%clk 0:02:14]}  Rc8 {[%clk 0:02:15]} 13. Rfd1 {[%clk 0:02:11]}  Qxd4 {[%clk 0:02:13]} 14. Bxd4 {[%clk 0:02:12]}  b5 {[%clk 0:02:07]} 15. Nce5 {[%clk 0:01:58]}  Ne6 {[%clk 0:01:43]} 16. Bxa7 {[%clk 0:01:43]}  Nd5 {[%clk 0:01:39]} 17. Rac1 {[%clk 0:01:09]}  Nc3 {[%clk 0:01:28]} 18. Rxc3 {[%clk 0:01:09]}  Rxc3 {[%clk 0:01:29]} 19. Nd7 {[%clk 0:01:09]}  Rd8 {[%clk 0:01:25]} 20. Bb6 {[%clk 0:01:04]}  Ra8 {[%clk 0:01:17]} 21. Nde5 {[%clk 0:00:42]}  h5 {[%clk 0:01:04]} 22. h4 {[%clk 0:00:31]}  Rxa2 {[%clk 0:01:01]} 23. e3 {[%clk 0:00:29]}  Rcc2 {[%clk 0:00:50]} 24. Rf1 {[%clk 0:00:25]}  f6 {[%clk 0:00:38]} 25. Nd7 {[%clk 0:00:23]}  Bd3 {[%clk 0:00:16]} 26. Rd1 {[%clk 0:00:22]}  Be2 {[%clk 0:00:16]} 27. Re1 {[%clk 0:00:23]}  Bxf3 {[%clk 0:00:16]} 28. Bxf3 {[%clk 0:00:24]}  Rxf2 {[%clk 0:00:17]} 29. Bd5 {[%clk 0:00:24]}  Kh7 {[%clk 0:00:12]} 30. Bxe6 {[%clk 0:00:20]}  Rg2+ {[%clk 0:00:12]} 31. Kh1 {[%clk 0:00:21]}  Rh2+ {[%clk 0:00:13]} 32. Kg1 {[%clk 0:00:21]}  Rag2+ {[%clk 0:00:13]} 33. Kf1 {[%clk 0:00:22]}  Rf2+ {[%clk 0:00:08]} 34. Kg1 {[%clk 0:00:22]}  Rhg2+ {[%clk 0:00:08]} 35. Kh1 {[%clk 0:00:22]}  Rh2+ {[%clk 0:00:05]} 36. Kg1 {[%clk 0:00:22]}  Rfg2+ {[%clk 0:00:04]} 37. Kf1 {[%clk 0:00:22]}  Rxg3 {[%clk 0:00:02]} 38. Bd5 {[%clk 0:00:16]}  Rxh4 {[%clk 0:00:02]} 39. Bc7 {[%clk 0:00:17]}  Rgh3 {[%clk 0:00:02]} 40. Kf2 {[%clk 0:00:16]}  Rg4 {[%clk 0:00:01]} 41. Be6 {[%clk 0:00:16]}  f5 {[%clk 0:00:02]} 42. Rc1 {[%clk 0:00:13]}  h4 {[%clk 0:00:02]} 43. Bf4 {[%clk 0:00:11]}  Bh6 {[%clk 0:00:02]} 44. Ne5 {[%clk 0:00:11]}  Bxf4 {[%clk 0:00:02]} 45. Nxg4 {[%clk 0:00:11]}  Bg3+ {[%clk 0:00:03]} 46. Kf3 {[%clk 0:00:11]}  fxg4+ {[%clk 0:00:04]} 47. Bxg4 {[%clk 0:00:10]}  Rh2 {[%clk 0:00:05]} 48. Rc8 {[%clk 0:00:10]}  Rf2+ {[%clk 0:00:05]} 49. Ke4 {[%clk 0:00:11]}  Rf7 {[%clk 0:00:05]} 50. Be6 {[%clk 0:00:10]}  Rf6 {[%clk 0:00:05]} 51. Bg8+ {[%clk 0:00:10]}  Kh6 {[%clk 0:00:06]} 52. Bd5 {[%clk 0:00:09]}  Kg5 {[%clk 0:00:06]} 53. Rh8 {[%clk 0:00:10]}  Rf1 {[%clk 0:00:06]} 54. Be6 {[%clk 0:00:10]}  Rc1 {[%clk 0:00:06]} 55. Kf3 {[%clk 0:00:10]}  Rc5 {[%clk 0:00:06]} 56. Kg2 {[%clk 0:00:08]}  Kf6 {[%clk 0:00:06]} 57. Bg4 {[%clk 0:00:07]}  Re5 {[%clk 0:00:06]} 58. Kf3 {[%clk 0:00:08]}  Kg5 {[%clk 0:00:07]} 59. Bd7 {[%clk 0:00:08]}  Rd5 {[%clk 0:00:07]} 60. Be6 {[%clk 0:00:08]}  Rd2 {[%clk 0:00:07]} 61. Bc8 {[%clk 0:00:08]}  Rf2+ {[%clk 0:00:08]} 62. Ke4 {[%clk 0:00:09]}  Rf1 {[%clk 0:00:07]} 63. Be6 {[%clk 0:00:09]}  Rf6 {[%clk 0:00:08]} 64. Kd5 {[%clk 0:00:08]}  Rf3 {[%clk 0:00:07]} 65. Ke4 {[%clk 0:00:08]}  Rf2 {[%clk 0:00:07]} 66. Kd5 {[%clk 0:00:08]}  Rf6 {[%clk 0:00:08]} 67. Bc8 {[%clk 0:00:08]}  Rf1 {[%clk 0:00:08]} 68. Ke4 {[%clk 0:00:08]}  b4 {[%clk 0:00:08]} 69. Be6 {[%clk 0:00:08]}  Rf6 {[%clk 0:00:08]} 70. Bc8 {[%clk 0:00:08]}  e6 {[%clk 0:00:08]} 71. Bd7 {[%clk 0:00:06]}  Kg4 {[%clk 0:00:08]} 72. Re8 {[%clk 0:00:02]}  h3 {[%clk 0:00:08]} 73. Rxe6 {[%clk 0:00:03]}  Rxe6+ {[%clk 0:00:08]} 74. Bxe6+ {[%clk 0:00:04]}  Kh4 {[%clk 0:00:08]} 75. Kf3 {[%clk 0:00:05]}  Bd6 {[%clk 0:00:08]} 76. Bd7 {[%clk 0:00:03]}  g5 {[%clk 0:00:07]} 77. Be6 {[%clk 0:00:02]}  Bc7 {[%clk 0:00:07]} 78. Bd7 {[%clk 0:00:02]}  g4+ {[%clk 0:00:06]} 0-1


[Site "https://www.chess.com"]

[Event "Titled Tuesday Blitz January 31 Early 2023"]
[White "Csonka, Balazs"]
[Black "Orlov, Georgi"]
[WhiteFideId "742910"]
[BlackFideId "2011271"]
[WhiteElo "2496"]
[BlackElo "2453"]
[Result "1/2-1/2"]
[Round "11"]
[TimeControl "180+2"]
[Date "2023.01.31"]
[WhiteClock "0:01:47"]
[BlackClock "0:02:15"]

1. e4 {[%clk 0:03:00]}  e6 {[%clk 0:02:59]} 2. d4 {[%clk 0:02:58]}  d5 {[%clk 0:03:00]} 3. Bd3 {[%clk 0:02:58]}  dxe4 {[%clk 0:02:59]} 4. Bxe4 {[%clk 0:02:59]}  Nf6 {[%clk 0:02:59]} 5. Bf3 {[%clk 0:02:59]}  Nc6 {[%clk 0:03:00]} 6. Be3 {[%clk 0:02:45]}  Nd5 {[%clk 0:02:41]} 7. Bc1 {[%clk 0:02:27]}  Nb6 {[%clk 0:02:28]} 8. Ne2 {[%clk 0:02:21]}  Be7 {[%clk 0:02:19]} 9. O-O {[%clk 0:02:15]}  Bf6 {[%clk 0:02:18]} 10. c3 {[%clk 0:01:59]}  O-O {[%clk 0:02:18]} 11. Nd2 {[%clk 0:01:59]}  e5 {[%clk 0:02:15]} 12. Ne4 {[%clk 0:01:47]} 1/2-1/2


[Site "https://www.chess.com"]

[Event "Titled Tuesday Blitz January 31 Early 2023"]
[White "Chigaev, Maksim"]
[Black "Bosnjak, Petar"]
[WhiteFideId "4108116"]
[BlackFideId "14532581"]
[WhiteElo "2628"]
[BlackElo "2337"]
[Result "0-1"]
[Round "11"]
[TimeControl "180+2"]
[Date "2023.01.31"]
[WhiteClock "0:00:02"]
[BlackClock "0:00:27"]

1. e4 {[%clk 0:03:00]}  c6 {[%clk 0:02:55]} 2. d4 {[%clk 0:02:59]}  d5 {[%clk 0:02:55]} 3. e5 {[%clk 0:03:00]}  Bf5 {[%clk 0:02:55]} 4. h4 {[%clk 0:03:00]}  h5 {[%clk 0:02:55]} 5. Bg5 {[%clk 0:03:00]}  Qb6 {[%clk 0:02:55]} 6. Bd3 {[%clk 0:03:00]}  Bxd3 {[%clk 0:02:56]} 7. Qxd3 {[%clk 0:02:59]}  e6 {[%clk 0:02:57]} 8. Nd2 {[%clk 0:02:59]}  Nh6 {[%clk 0:02:57]} 9. Ngf3 {[%clk 0:02:58]}  Nf5 {[%clk 0:02:57]} 10. O-O {[%clk 0:02:58]}  Be7 {[%clk 0:02:58]} 11. c4 {[%clk 0:02:59]}  Qa6 {[%clk 0:02:55]} 12. b3 {[%clk 0:02:58]}  Nd7 {[%clk 0:02:51]} 13. a4 {[%clk 0:02:58]}  Bxg5 {[%clk 0:02:47]} 14. Nxg5 {[%clk 0:02:56]}  g6 {[%clk 0:02:47]} 15. b4 {[%clk 0:02:42]}  dxc4 {[%clk 0:01:58]} 16. Nxc4 {[%clk 0:02:42]}  Nb6 {[%clk 0:01:58]} 17. b5 {[%clk 0:02:43]}  cxb5 {[%clk 0:01:57]} 18. Nd6+ {[%clk 0:02:41]}  Nxd6 {[%clk 0:01:54]} 19. exd6 {[%clk 0:02:41]}  bxa4 {[%clk 0:01:51]} 20. Qg3 {[%clk 0:02:23]}  O-O {[%clk 0:01:50]} 21. Nxe6 {[%clk 0:02:22]}  Nc4 {[%clk 0:01:40]} 22. Nxf8 {[%clk 0:01:05]}  Rxf8 {[%clk 0:01:38]} 23. Rfc1 {[%clk 0:01:04]}  b5 {[%clk 0:01:35]} 24. d5 {[%clk 0:00:57]}  Rd8 {[%clk 0:01:33]} 25. Re1 {[%clk 0:00:46]}  Qxd6 {[%clk 0:01:31]} 26. Qg5 {[%clk 0:00:46]}  Kg7 {[%clk 0:01:28]} 27. Rad1 {[%clk 0:00:36]}  Qf6 {[%clk 0:01:13]} 28. Qg3 {[%clk 0:00:31]}  a3 {[%clk 0:01:13]} 29. Qc7 {[%clk 0:00:31]}  Qb6 {[%clk 0:01:07]} 30. Qe7 {[%clk 0:00:25]}  Qd6 {[%clk 0:01:02]} 31. Qxa7 {[%clk 0:00:24]}  Rd7 {[%clk 0:00:59]} 32. Qd4+ {[%clk 0:00:22]}  Qf6 {[%clk 0:00:59]} 33. Qc5 {[%clk 0:00:22]}  Qb6 {[%clk 0:00:56]} 34. Qb4 {[%clk 0:00:18]}  Qa5 {[%clk 0:00:55]} 35. Qb3 {[%clk 0:00:15]}  Nd6 {[%clk 0:00:45]} 36. Re2 {[%clk 0:00:04]}  b4 {[%clk 0:00:43]} 37. Rb1 {[%clk 0:00:05]}  Rb7 {[%clk 0:00:41]} 38. Qg3 {[%clk 0:00:03]}  Nf5 {[%clk 0:00:39]} 39. Qe5+ {[%clk 0:00:03]}  Kh7 {[%clk 0:00:36]} 40. Rd2 {[%clk 0:00:02]}  Qd8 {[%clk 0:00:31]} 41. d6 {[%clk 0:00:02]}  b3 {[%clk 0:00:31]} 42. d7 {[%clk 0:00:02]}  Rxd7 {[%clk 0:00:26]} 43. Rxd7 {[%clk 0:00:01]}  Qxd7 {[%clk 0:00:27]} 44. Rxb3 {[%clk 0:00:02]}  Qd1+ {[%clk 0:00:27]} 0-1


[Site "https://www.chess.com"]

[Event "Titled Tuesday Blitz January 31 Early 2023"]
[White "Dehtiarov, Roman"]
[Black "Svane, Frederik"]
[WhiteFideId "14186640"]
[BlackFideId "12923044"]
[WhiteElo "2289"]
[BlackElo "2600"]
[Result "0-1"]
[Round "11"]
[TimeControl "180+2"]
[Date "2023.01.31"]
[WhiteClock "0:00:01"]
[BlackClock "0:00:13"]

1. e4 {[%clk 0:03:00]}  b6 {[%clk 0:02:58]} 2. Nc3 {[%clk 0:03:00]}  Bb7 {[%clk 0:02:58]} 3. d4 {[%clk 0:03:01]}  g6 {[%clk 0:02:55]} 4. Nf3 {[%clk 0:03:00]}  Bg7 {[%clk 0:02:56]} 5. Be3 {[%clk 0:03:01]}  d6 {[%clk 0:02:53]} 6. Bc4 {[%clk 0:03:01]}  e6 {[%clk 0:02:50]} 7. O-O {[%clk 0:02:59]}  Nd7 {[%clk 0:02:50]} 8. Re1 {[%clk 0:02:57]}  Ngf6 {[%clk 0:02:45]} 9. e5 {[%clk 0:02:54]}  dxe5 {[%clk 0:02:43]} 10. dxe5 {[%clk 0:02:38]}  Ng4 {[%clk 0:01:57]} 11. Bg5 {[%clk 0:02:19]}  Bxf3 {[%clk 0:01:56]} 12. Qxf3 {[%clk 0:01:42]}  Ngxe5 {[%clk 0:01:54]} 13. Qe4 {[%clk 0:00:26]}  Qc8 {[%clk 0:01:53]} 14. Ba6 {[%clk 0:00:21]}  Qb8 {[%clk 0:01:09]} 15. f4 {[%clk 0:00:07]}  Nc5 {[%clk 0:00:53]} 16. Qe2 {[%clk 0:00:08]}  Ned7 {[%clk 0:00:16]} 17. Bb5 {[%clk 0:00:03]}  Qb7 {[%clk 0:00:17]} 18. Rad1 {[%clk 0:00:01]}  c6 {[%clk 0:00:13]} 0-1


[Site "https://www.chess.com"]

[Event "Titled Tuesday Blitz January 31 Early 2023"]
[White "Zhigalko, Sergei"]
[Black "Taspinar, Yanki"]
[WhiteFideId "13502956"]
[BlackFideId "34561188"]
[WhiteElo "2572"]
[BlackElo "2262"]
[Result "1-0"]
[Round "11"]
[TimeControl "180+2"]
[Date "2023.01.31"]
[WhiteClock "0:00:11"]
[BlackClock "0:00:23"]

1. e4 {[%clk 0:03:00]}  e5 {[%clk 0:02:59]} 2. Nf3 {[%clk 0:03:00]}  Nc6 {[%clk 0:03:00]} 3. Bc4 {[%clk 0:02:59]}  Nf6 {[%clk 0:02:59]} 4. d3 {[%clk 0:02:56]}  Bc5 {[%clk 0:02:59]} 5. O-O {[%clk 0:02:56]}  d6 {[%clk 0:02:59]} 6. Nbd2 {[%clk 0:02:57]}  a6 {[%clk 0:02:59]} 7. c3 {[%clk 0:02:57]}  Ba7 {[%clk 0:03:00]} 8. Bb3 {[%clk 0:02:56]}  h6 {[%clk 0:03:00]} 9. Re1 {[%clk 0:02:54]}  Be6 {[%clk 0:02:58]} 10. Nf1 {[%clk 0:02:53]}  O-O {[%clk 0:02:57]} 11. Ng3 {[%clk 0:02:54]}  Re8 {[%clk 0:02:56]} 12. h3 {[%clk 0:02:37]}  d5 {[%clk 0:02:54]} 13. exd5 {[%clk 0:02:17]}  Bxd5 {[%clk 0:02:54]} 14. Be3 {[%clk 0:02:17]}  Bxe3 {[%clk 0:02:45]} 15. Rxe3 {[%clk 0:02:17]}  Qd7 {[%clk 0:02:44]} 16. Bc2 {[%clk 0:02:06]}  Rad8 {[%clk 0:02:24]} 17. Qe2 {[%clk 0:02:06]}  Bxf3 {[%clk 0:02:08]} 18. Rxf3 {[%clk 0:02:05]}  Qd5 {[%clk 0:02:09]} 19. Bb3 {[%clk 0:01:58]}  Qd7 {[%clk 0:02:01]} 20. Nh5 {[%clk 0:01:41]}  Nd5 {[%clk 0:01:13]} 21. Bxd5 {[%clk 0:00:56]}  Qxd5 {[%clk 0:01:13]} 22. Rg3 {[%clk 0:00:57]}  Kf8 {[%clk 0:01:05]} 23. Nxg7 {[%clk 0:00:53]}  Re7 {[%clk 0:01:05]} 24. Qh5 {[%clk 0:00:47]}  Rd6 {[%clk 0:00:48]} 25. Nf5 {[%clk 0:00:47]}  Rf6 {[%clk 0:00:49]} 26. Nxe7 {[%clk 0:00:35]}  Kxe7 {[%clk 0:00:50]} 27. Qe2 {[%clk 0:00:27]}  Kf8 {[%clk 0:00:45]} 28. a3 {[%clk 0:00:28]}  b5 {[%clk 0:00:44]} 29. Re1 {[%clk 0:00:28]}  Rf4 {[%clk 0:00:37]} 30. Rf3 {[%clk 0:00:26]}  Rxf3 {[%clk 0:00:35]} 31. Qxf3 {[%clk 0:00:27]}  Qxf3 {[%clk 0:00:36]} 32. gxf3 {[%clk 0:00:28]}  f6 {[%clk 0:00:33]} 33. Kg2 {[%clk 0:00:27]}  Kf7 {[%clk 0:00:34]} 34. f4 {[%clk 0:00:27]}  exf4 {[%clk 0:00:33]} 35. d4 {[%clk 0:00:27]}  Na5 {[%clk 0:00:31]} 36. Kf3 {[%clk 0:00:25]}  Nc4 {[%clk 0:00:32]} 37. Re2 {[%clk 0:00:25]}  a5 {[%clk 0:00:30]} 38. Kxf4 {[%clk 0:00:26]}  a4 {[%clk 0:00:31]} 39. Ke4 {[%clk 0:00:23]}  c6 {[%clk 0:00:29]} 40. Kd3 {[%clk 0:00:22]}  f5 {[%clk 0:00:28]} 41. Kc2 {[%clk 0:00:21]}  Kf6 {[%clk 0:00:28]} 42. Re8 {[%clk 0:00:21]}  Kf7 {[%clk 0:00:27]} 43. Rc8 {[%clk 0:00:20]}  Na5 {[%clk 0:00:27]} 44. f4 {[%clk 0:00:16]}  Ke6 {[%clk 0:00:27]} 45. Re8+ {[%clk 0:00:15]}  Kf6 {[%clk 0:00:27]} 46. Rg8 {[%clk 0:00:13]}  Kf7 {[%clk 0:00:26]} 47. Rg3 {[%clk 0:00:13]}  Nc4 {[%clk 0:00:24]} 48. h4 {[%clk 0:00:13]}  Nd6 {[%clk 0:00:23]} 49. h5 {[%clk 0:00:12]}  Ne4 {[%clk 0:00:23]} 50. Rg6 {[%clk 0:00:11]}  Nf6 {[%clk 0:00:23]} 51. Rxh6 {[%clk 0:00:12]}  Kg7 {[%clk 0:00:24]} 52. Rg6+ {[%clk 0:00:11]}  Kf7 {[%clk 0:00:25]} 53. Rg5 {[%clk 0:00:11]}  Ke6 {[%clk 0:00:23]} 54. h6 {[%clk 0:00:11]} 1-0


[Site "https://www.chess.com"]

[Event "Titled Tuesday Blitz January 31 Early 2023"]
[White "Arabidze, Meri"]
[Black "Kukhmazov, Arsen"]
[WhiteFideId "13604040"]
[BlackFideId "24108260"]
[WhiteElo "2441"]
[BlackElo "2512"]
[Result "0-1"]
[Round "11"]
[TimeControl "180+2"]
[Date "2023.01.31"]
[WhiteClock "0:00:10"]
[BlackClock "0:01:25"]

1. Nf3 {[%clk 0:03:00]}  d5 {[%clk 0:02:57]} 2. b3 {[%clk 0:03:00]}  c6 {[%clk 0:02:31]} 3. Bb2 {[%clk 0:03:00]}  Bf5 {[%clk 0:02:32]} 4. e3 {[%clk 0:02:58]}  h6 {[%clk 0:02:30]} 5. Be2 {[%clk 0:02:56]}  e6 {[%clk 0:02:30]} 6. O-O {[%clk 0:02:56]}  Nf6 {[%clk 0:02:30]} 7. c4 {[%clk 0:02:55]}  Be7 {[%clk 0:02:31]} 8. Nc3 {[%clk 0:02:52]}  O-O {[%clk 0:02:31]} 9. Nd4 {[%clk 0:02:50]}  Bh7 {[%clk 0:02:31]} 10. f4 {[%clk 0:02:50]}  c5 {[%clk 0:02:26]} 11. Ndb5 {[%clk 0:02:21]}  Nc6 {[%clk 0:02:27]} 12. cxd5 {[%clk 0:02:15]}  exd5 {[%clk 0:02:27]} 13. d4 {[%clk 0:01:46]}  a6 {[%clk 0:02:26]} 14. Na3 {[%clk 0:01:46]}  Re8 {[%clk 0:02:00]} 15. Bf3 {[%clk 0:01:37]}  Rc8 {[%clk 0:01:57]} 16. Kh1 {[%clk 0:01:14]}  cxd4 {[%clk 0:01:51]} 17. exd4 {[%clk 0:01:15]}  Qa5 {[%clk 0:01:51]} 18. Na4 {[%clk 0:01:09]}  Bxa3 {[%clk 0:01:50]} 19. Bxa3 {[%clk 0:01:01]}  b5 {[%clk 0:01:51]} 20. Rc1 {[%clk 0:00:42]}  bxa4 {[%clk 0:01:50]} 21. Rc5 {[%clk 0:00:43]}  Qd8 {[%clk 0:01:44]} 22. bxa4 {[%clk 0:00:39]}  Ne4 {[%clk 0:01:42]} 23. Bxe4 {[%clk 0:00:39]}  Bxe4 {[%clk 0:01:43]} 24. f5 {[%clk 0:00:33]}  Qg5 {[%clk 0:01:41]} 25. Rf2 {[%clk 0:00:28]}  Ne7 {[%clk 0:01:34]} 26. Bc1 {[%clk 0:00:23]}  Qf6 {[%clk 0:01:34]} 27. Kg1 {[%clk 0:00:15]}  Nxf5 {[%clk 0:01:25]} 28. g4 {[%clk 0:00:15]}  Qxd4 {[%clk 0:01:23]} 29. Qxd4 {[%clk 0:00:10]}  Nxd4 {[%clk 0:01:24]} 30. Rxc8 {[%clk 0:00:10]}  Rxc8 {[%clk 0:01:25]} 0-1


[Site "https://www.chess.com"]

[Event "Titled Tuesday Blitz January 31 Early 2023"]
[White "Nouri, Alekhine"]
[Black "Antonica, Dragos-Andrei"]
[WhiteFideId "5216184"]
[BlackFideId "1246372"]
[WhiteElo "2257"]
[BlackElo "2373"]
[Result "1-0"]
[Round "11"]
[TimeControl "180+2"]
[Date "2023.01.31"]
[WhiteClock "0:00:49"]
[BlackClock "0:00:16"]

1. e4 {[%clk 0:03:00]}  c5 {[%clk 0:02:56]} 2. Nf3 {[%clk 0:03:00]}  e6 {[%clk 0:02:56]} 3. d4 {[%clk 0:03:00]}  cxd4 {[%clk 0:02:57]} 4. Nxd4 {[%clk 0:03:01]}  a6 {[%clk 0:02:57]} 5. Nc3 {[%clk 0:03:01]}  Qc7 {[%clk 0:02:58]} 6. Be3 {[%clk 0:03:01]}  Nf6 {[%clk 0:02:59]} 7. a3 {[%clk 0:02:59]}  d6 {[%clk 0:02:58]} 8. Qf3 {[%clk 0:02:59]}  Nbd7 {[%clk 0:02:58]} 9. O-O-O {[%clk 0:02:59]}  Ne5 {[%clk 0:02:58]} 10. Qg3 {[%clk 0:02:57]}  Nc4 {[%clk 0:02:53]} 11. Bxc4 {[%clk 0:02:57]}  Qxc4 {[%clk 0:02:53]} 12. f4 {[%clk 0:02:53]}  Be7 {[%clk 0:02:51]} 13. e5 {[%clk 0:02:52]}  Nh5 {[%clk 0:02:42]} 14. Qf3 {[%clk 0:02:49]}  g6 {[%clk 0:02:38]} 15. exd6 {[%clk 0:02:44]}  Bxd6 {[%clk 0:02:37]} 16. Nc6 {[%clk 0:02:09]}  Bd7 {[%clk 0:02:15]} 17. Ne4 {[%clk 0:01:11]}  Bxa3 {[%clk 0:01:09]} 18. Ne5 {[%clk 0:01:04]}  Bxb2+ {[%clk 0:01:09]} 19. Kxb2 {[%clk 0:01:04]}  Qb4+ {[%clk 0:01:09]} 20. Kc1 {[%clk 0:01:05]}  Ba4 {[%clk 0:00:59]} 21. Bc5 {[%clk 0:00:57]}  Qa5 {[%clk 0:00:39]} 22. Qxh5 {[%clk 0:00:57]}  Qxc5 {[%clk 0:00:16]} 23. Nxc5 {[%clk 0:00:49]}  gxh5 {[%clk 0:00:16]} 24. Nxa4 {[%clk 0:00:49]} 1-0


[Site "https://www.chess.com"]

[Event "Titled Tuesday Blitz January 31 Early 2023"]
[White "Ioannidis, Evgenios"]
[Black "Odegov, Artem"]
[WhiteFideId "4229274"]
[BlackFideId "34183644"]
[WhiteElo "2467"]
[BlackElo "2261"]
[Result "1-0"]
[Round "11"]
[TimeControl "180+2"]
[Date "2023.01.31"]
[WhiteClock "0:00:34"]
[BlackClock "0:00:03"]

1. d4 {[%clk 0:02:56]}  d5 {[%clk 0:02:59]} 2. c4 {[%clk 0:02:56]}  e6 {[%clk 0:02:59]} 3. Nc3 {[%clk 0:02:56]}  c5 {[%clk 0:02:59]} 4. cxd5 {[%clk 0:02:56]}  exd5 {[%clk 0:03:00]} 5. Nf3 {[%clk 0:02:55]}  Nc6 {[%clk 0:03:01]} 6. g3 {[%clk 0:02:50]}  Nf6 {[%clk 0:03:00]} 7. Bg2 {[%clk 0:02:50]}  Be7 {[%clk 0:03:00]} 8. O-O {[%clk 0:02:49]}  O-O {[%clk 0:03:00]} 9. dxc5 {[%clk 0:02:44]}  Bxc5 {[%clk 0:03:01]} 10. Bg5 {[%clk 0:02:44]}  d4 {[%clk 0:03:01]} 11. Bxf6 {[%clk 0:02:42]}  Qxf6 {[%clk 0:03:02]} 12. Ne4 {[%clk 0:02:42]}  Qe7 {[%clk 0:03:03]} 13. Nxc5 {[%clk 0:02:41]}  Qxc5 {[%clk 0:03:04]} 14. Rc1 {[%clk 0:02:31]}  Qb6 {[%clk 0:03:02]} 15. Qd2 {[%clk 0:02:32]}  Bg4 {[%clk 0:03:00]} 16. Rfd1 {[%clk 0:02:30]}  Rad8 {[%clk 0:02:59]} 17. b3 {[%clk 0:02:26]}  Rfe8 {[%clk 0:02:59]} 18. h3 {[%clk 0:02:24]}  Bh5 {[%clk 0:02:59]} 19. Rc4 {[%clk 0:01:59]}  Bxf3 {[%clk 0:02:32]} 20. Bxf3 {[%clk 0:01:59]}  d3 {[%clk 0:02:33]} 21. Re4 {[%clk 0:01:16]}  Ne5 {[%clk 0:01:24]} 22. Bg2 {[%clk 0:01:13]}  Qa6 {[%clk 0:01:20]} 23. Re1 {[%clk 0:01:06]}  Kf8 {[%clk 0:00:40]} 24. Qb4+ {[%clk 0:00:47]}  Kg8 {[%clk 0:00:09]} 25. exd3 {[%clk 0:00:45]}  f6 {[%clk 0:00:06]} 26. d4 {[%clk 0:00:44]}  Qb6 {[%clk 0:00:01]} 27. Qxb6 {[%clk 0:00:43]}  axb6 {[%clk 0:00:02]} 28. dxe5 {[%clk 0:00:43]}  fxe5 {[%clk 0:00:03]} 29. Rxe5 {[%clk 0:00:43]}  Rxe5 {[%clk 0:00:04]} 30. Rxe5 {[%clk 0:00:43]}  h5 {[%clk 0:00:05]} 31. Rxh5 {[%clk 0:00:41]}  g5 {[%clk 0:00:04]} 32. Rxg5+ {[%clk 0:00:41]}  Kh7 {[%clk 0:00:04]} 33. Bxb7 {[%clk 0:00:40]}  b5 {[%clk 0:00:04]} 34. Rxb5 {[%clk 0:00:40]}  Kh6 {[%clk 0:00:01]} 35. a4 {[%clk 0:00:39]}  Kh7 {[%clk 0:00:01]} 36. a5 {[%clk 0:00:39]}  Rd6 {[%clk 0:00:02]} 37. a6 {[%clk 0:00:39]}  Rg6 {[%clk 0:00:01]} 38. a7 {[%clk 0:00:38]}  Rg8 {[%clk 0:00:01]} 39. a8=Q {[%clk 0:00:36]}  Rg7 {[%clk 0:00:02]} 40. Be4+ {[%clk 0:00:34]}  Kh6 {[%clk 0:00:02]} 41. Qh8+ {[%clk 0:00:34]}  Rh7 {[%clk 0:00:03]} 42. Qxh7# {[%clk 0:00:34]} 1-0


[Site "https://www.chess.com"]